fUSD/lending_fUSD_20250211
["ID","MTS","AMOUNT","RATE_DAILY","PERIOD"]
[352700788,1739253046914,-3169.88,0.00010958,2]
[352700789,1739253046926,-2069.77,0.00010958,2]
[352700790,1739253046936,-2347.1,0.00010958,2]
[352700791,1739253046947,-1080.39,0.00010958,2]
[352700792,1739253046958,-500.0,0.00010958,2]
[352700793,1739253046968,-500.0,0.00010958,2]
[352700794,1739253046979,-2071.32,0.00010958,2]
[352700795,1739253046989,-2274.25,0.00010958,2]
[352700796,1739253047001,-2298.2,0.00010958,2]
[352700797,1739253047012,-803.13,0.00010958,2]
[352700798,1739253047023,-2169.54,0.00010958,2]
[352700799,1739253047034,-714.61,0.00010958,2]
[352700800,1739253047045,-1420.62,0.00010958,2]
[352700801,1739253047056,-2326.74,0.00010958,2]
[352700802,1739253047067,-2455.349898,0.00010958,2]
[352700803,1739253047097,-426.650102,0.00010958,2]
[352700804,1739253047109,-329.21185827,0.00010958,2]
[352700805,1739253047132,-398.00814173,0.00010958,2]
[352700806,1739253047143,-69.83685141,0.00010958,2]
[352700807,1739253048053,-615.79314859,0.00010958,2]
[352700808,1739253048063,-1291.36,0.00010958,2]
[352700809,1739253048075,-500.0,0.00010958,2]
[352700810,1739253048088,-94.80040989,0.00010958,2]
[352700811,1739253048111,-2443.88959011,0.00010958,2]
[352700812,1739253048123,-140.38158989,0.00010958,2]
[352700813,1739253048138,-359.61841011,0.00010958,2]
[352700814,1739253048151,-2342.88158989,0.00010958,2]
[352700815,1739253048192,-909.34146577,0.00010958,2]
[352700817,1739253102689,538.3377,8.699e-05,2]
[352700819,1739253242088,2009.0488,8.699e-05,2]
[352700820,1739253535691,-150.0,8.835e-05,2]
[352700821,1739253535715,-1430.0,8.836e-05,2]
[352700828,1739254056432,840.67,0.0002,120]
[352700829,1739254144034,637.60715152,0.0002,120]
[352700830,1739254145459,904.39,8.219e-05,2]
[352700834,1739254216062,1750.4493,8.699e-05,2]
[352700836,1739254231521,-300.0,8.835e-05,2]
[352700837,1739254231531,-1891.88985649,8.836e-05,2]
[352700838,1739254231711,-790.59437344,8.836e-05,2]
[352700839,1739254232027,-4132.90258031,8.836e-05,2]
[352700869,1739254237513,-10206.68268976,8.836e-05,2]
[352700870,1739254237523,-1486.4417,8.836e-05,2]
[352700871,1739254237532,-4438.55929045,8.836e-05,2]
[352700872,1739254237543,-8458.04160955,8.836e-05,2]
[352700873,1739254237552,-150.0,8.84e-05,2]
[352700874,1739254237561,-1955.03277007,8.851e-05,2]
[352700875,1739254237806,-544.96722993,8.851e-05,2]
[352700876,1739254237815,-10046.2127502,8.971e-05,2]
[352700877,1739254237833,-1072.35,8.971e-05,2]
[352700878,1739254237868,-15012.4695341,8.971e-05,2]
[352700880,1739254237877,-150.0,8.971e-05,2]
[352700882,1739254237887,-38487.0012,8.973e-05,2]
[352700884,1739254237896,-5000.0,8.973e-05,2]
[352700885,1739254237905,-420.0,9.718e-05,2]
[352700887,1739254237915,-150.0,9.719e-05,2]
[352700889,1739254237923,-150.0,9.719e-05,2]
[352700891,1739254237933,-255.0,9.868e-05,2]
[352700893,1739254237942,-354.85407515,9.969e-05,2]
[352700897,1739254237969,-645.14592485,9.969e-05,2]
[352700898,1739254237978,-243.40055932,0.0001,2]
[352700899,1739254237989,-4756.59944068,0.0001,2]
[352700900,1739254237999,-424.89,0.0001012,2]
[352700901,1739254238008,-230.6,0.00010137,2]
[352700902,1739254238018,-191.22,0.00010163,2]
[352700903,1739254238027,-904.39,0.00010474,2]
[352700904,1739254238036,-587.0,0.0001069,2]
[352700905,1739254238046,-4000.0,0.0001085,2]
[352700906,1739254238055,-1467.01535199,0.000109,2]
[352700907,1739254238074,-9260.05823244,0.000109,2]
[352700908,1739254238086,-811.351313,0.000109,2]
[352701006,1739254239565,-10661.23488406,0.000109,2]
[352701007,1739254239887,-1080.5154265,0.000109,2]
[352701008,1739254239901,-785.83533901,0.000109,2]
[352701009,1739254239913,-619.9049794,0.000109,2]
[352701010,1739254239924,-32902.31564465,0.000109,2]
[352701011,1739254240011,-1526.6498362,0.000109,2]
[352701012,1739254240023,-543.13499999,0.000109,2]
[352701013,1739254240035,-45177.75170009,0.000109,2]
[352701020,1739254242523,-2403.78927726,0.000109,2]
[352701021,1739254242532,-238.55318102,0.000109,2]
[352701022,1739254242542,-200.0,0.00010958,2]
[352701023,1739254242551,-500.0,0.00010958,2]
[352701024,1739254242560,-502.70325222,0.00010958,2]
[352701025,1739254242569,-500.0,0.00010958,2]
[352701026,1739254242579,-500.0,0.00010958,2]
[352701027,1739254242589,-500.0,0.00010958,7]
[352701028,1739254242599,-500.0,0.00010958,2]
[352701029,1739254242609,-500.0,0.00010958,2]
[352701030,1739254242619,-528.55075351,0.00010958,2]
[352701031,1739254242628,-500.0,0.00010958,2]
[352701032,1739254242637,-503.30678872,0.00010958,2]
[352701033,1739254242647,-500.0,0.00010958,2]
[352701034,1739254242656,-501.60840067,0.00010958,2]
[352701035,1739254242665,-500.0,0.00010958,2]
[352701036,1739254242675,-500.0,0.00010958,2]
[352701037,1739254242684,-500.0,0.00010958,2]
[352701038,1739254242693,-500.0,0.00010958,2]
[352701039,1739254242703,-341.05481019,0.00010958,2]
[352701040,1739254242715,-158.94518981,0.00010958,2]
[352701041,1739254242724,-500.0,0.00010958,2]
[352701042,1739254242733,-195.61230338,0.00010958,2]
[352701043,1739254242752,-304.38769662,0.00010958,2]
[352701044,1739254242762,-505.77326014,0.00010958,2]
[352701045,1739254242772,-500.0,0.00010958,2]
[352701046,1739254242781,-500.0,0.00010958,2]
[352701047,1739254242791,-500.0,0.00010958,2]
[352701048,1739254242800,-500.0,0.00010958,2]
[352701049,1739254242810,-565.39511532,0.00010958,2]
[352701050,1739254242819,-71.86931104,0.00010958,2]
[352701051,1739254242831,-423.33054307,0.00010958,2]
[352701052,1739254242843,-4.80014589,0.00010958,2]
[352701053,1739254242852,-504.20363957,0.00010958,2]
[352701054,1739254242861,-13.44621454,0.00010958,2]
[352701056,1739254242881,-486.55378546,0.00010958,2]
[352701058,1739254242890,-386.53720854,0.00010958,2]
[352701060,1739254242901,-117.53976698,0.00010958,2]
[352701071,1739254243171,-302.87062963,0.00010958,2]
[352701073,1739254243182,-503.31700654,0.00010958,2]
[352701074,1739254243192,-502.13064991,0.00010958,2]
[352701075,1739254243201,-500.0,0.00010958,2]
[352701076,1739254243211,-500.0,0.00010958,2]
[352701077,1739254243220,-507.32742226,0.00010958,2]
[352701078,1739254243237,-500.0,0.00010958,2]
[352701079,1739254243250,-349.12234016,0.00010958,2]
[352701080,1739254243261,-500.72164468,0.00010958,2]
[352701081,1739254243270,-500.0,0.00010958,2]
[352701082,1739254243280,-500.0,0.00010958,2]
[352701083,1739254243290,-512.66,0.00010958,2]
[352701084,1739254243301,-500.0,0.00010958,2]
[352701085,1739254243311,-500.0,0.00010958,2]
[352701086,1739254243321,-500.0,0.00010958,2]
[352701087,1739254243331,-500.0,0.00010958,2]
[352701088,1739254243340,-500.0,0.00010958,2]
[352701089,1739254243350,-500.0,0.00010958,2]
[352701090,1739254243361,-500.0,0.00010958,2]
[352701091,1739254243370,-776.771773,0.00010958,2]
[352701092,1739254243380,-1307.6,0.00010958,2]
[352701093,1739254243389,-500.0,0.00010958,2]
[352701094,1739254243399,-500.0,0.00010958,2]
[352701095,1739254243408,-500.0,0.00010958,2]
[352701096,1739254243418,-500.0,0.00010958,2]
[352701097,1739254243428,-500.0,0.00010958,2]
[352701098,1739254243437,-526.87,0.00010958,2]
[352701099,1739254243446,-160.496029,0.00010958,2]
[352701100,1739254243456,-500.0,0.00010958,2]
[352701101,1739254243465,-500.0,0.00010958,2]
[352701102,1739254243475,-500.0,0.00010958,2]
[352701103,1739254243484,-500.0,0.00010958,2]
[352701104,1739254243493,-951.80158837,0.00010958,2]
[352701105,1739254243506,-122.82841163,0.00010958,2]
[352701106,1739254243515,-173.30602172,0.00010958,2]
[352701107,1739254243527,-450.84520028,0.00010958,2]
[352701108,1739254243536,-500.0,0.00010958,2]
[352701109,1739254243545,-579.03,0.00010958,2]
[352701110,1739254243554,-443.52479972,0.00010958,2]
[352701111,1739254243573,-138.84520028,0.00010958,2]
[352701112,1739254243582,-125.91930972,0.00010958,2]
[352701113,1739254243628,-782.07069028,0.00010958,2]
[352701114,1739254243638,-500.0,0.00010958,2]
[352701115,1739254243647,-500.0,0.00010958,2]
[352701116,1739254243657,-1070.41,0.00010958,2]
[352701117,1739254243666,-500.0,0.00010958,2]
[352701118,1739254243675,-500.0,0.00010958,2]
[352701119,1739254243684,-500.0,0.00010958,2]
[352701120,1739254243694,-500.0,0.00010958,2]
[352701121,1739254243703,-500.0,0.00010958,2]
[352701122,1739254243712,-500.0,0.00010958,2]
[352701123,1739254243722,-500.0,0.00010958,2]
[352701124,1739254243732,-1122.73,0.00010958,2]
[352701125,1739254243741,-500.0,0.00010958,2]
[352701126,1739254243751,-207.82750279,0.00010958,2]
[352701127,1739254243763,-292.17249721,0.00010958,2]
[352701128,1739254243772,-500.0,0.00010958,2]
[352701129,1739254243782,-258.01919511,0.00010958,2]
[352701130,1739254243791,-933.76,0.00010958,2]
[352701131,1739254243801,-500.0,0.00010958,2]
[352701132,1739254243817,-801.96,0.00010958,2]
[352701133,1739254243832,-717.42,0.00010958,2]
[352701134,1739254243843,-500.0,0.00010958,2]
[352701135,1739254243854,-500.0,0.00010958,2]
[352701136,1739254243864,-500.0,0.00010958,2]
[352701137,1739254243874,-1200.86,0.00010958,2]
[352701138,1739254243885,-839.97,0.00010958,2]
[352701139,1739254243895,-500.0,0.00010958,2]
[352701140,1739254243904,-708.18,0.00010958,2]
[352701141,1739254243914,-500.0,0.00010958,2]
[352701142,1739254243923,-500.0,0.00010958,2]
[352701143,1739254243933,-500.0,0.00010958,2]
[352701144,1739254243942,-500.0,0.00010958,2]
[352701145,1739254243952,-500.0,0.00010958,2]
[352701146,1739254243961,-556.8,0.00010958,2]
[352701147,1739254243971,-640.07,0.00010958,2]
[352701148,1739254243980,-500.0,0.00010958,2]
[352701149,1739254243989,-910.5,0.00010958,2]
[352701150,1739254243999,-500.0,0.00010958,2]
[352701151,1739254244008,-717.14,0.00010958,2]
[352701152,1739254244017,-500.0,0.00010958,2]
[352701153,1739254244027,-500.0,0.00010958,2]
[352701154,1739254244036,-500.0,0.00010958,2]
[352701155,1739254244045,-500.0,0.00010958,2]
[352701156,1739254244055,-500.0,0.00010958,2]
[352701157,1739254244064,-500.0,0.00010958,2]
[352701158,1739254244074,-901.54,0.00010958,2]
[352701159,1739254244083,-500.0,0.00010958,2]
[352701160,1739254244092,-500.0,0.00010958,2]
[352701161,1739254244102,-500.0,0.00010958,2]
[352701162,1739254244111,-500.0,0.00010958,2]
[352701163,1739254244121,-500.0,0.00010958,2]
[352701164,1739254244131,-500.0,0.00010958,2]
[352701165,1739254244140,-481.66417013,0.00010958,2]
[352701166,1739254244153,-537.24582987,0.00010958,2]
[352701167,1739254244163,-500.0,0.00010958,2]
[352701168,1739254244173,-184.95371553,0.00010958,2]
[352701169,1739254244183,-499.0886951,0.00010958,2]
[352701170,1739254244195,-0.9113049,0.00010958,2]
[352701171,1739254244204,-603.31,0.00010958,2]
[352701172,1739254244215,-500.0,0.00010958,2]
[352701173,1739254244224,-500.0,0.00010958,2]
[352701174,1739254244233,-625.93,0.00010958,2]
[352701175,1739254244243,-264.84869509,0.00010958,2]
[352701176,1739254244255,-241.27141017,0.00010958,2]
[352701177,1739254244264,-249.17262285,0.00010958,2]
[352701186,1739254245635,5000.0,8.973e-05,2]
[352701187,1739254245657,-250.82737715,0.00010958,2]
[352701188,1739254245666,-542.54,0.00010958,2]
[352701189,1739254245676,-131.72021923,0.00010958,2]
[352701190,1739254245687,-1586.95978077,0.00010958,2]
[352701191,1739254245697,-38.04021923,0.00010958,2]
[352701192,1739254245708,-250.85949822,0.00010958,2]
[352701193,1739254245954,-211.10028255,0.00010958,2]
[352701194,1739254245964,-449.03954783,0.00010958,2]
[352701195,1739254245976,-50.96045217,0.00010958,2]
[352701196,1739254245985,-201.05841897,0.00010958,2]
[352701197,1739254245997,-298.94158103,0.00010958,2]
[352701198,1739254246007,-340.20841888,0.00010958,2]
[352701199,1739254246018,-159.79158112,0.00010958,2]
[352701200,1739254246028,-500.0,0.00010958,2]
[352701201,1739254246038,-500.0,0.00010958,2]
[352701202,1739254246048,-536.97546511,0.00010958,2]
[352701203,1739254246060,-599.76453489,0.00010958,2]
[352701204,1739254246070,-500.0,0.00010958,2]
[352701206,1739254246080,-260.71865292,0.00010958,2]
[352701217,1739254284033,3567.4429,8.256e-05,2]
[352701218,1739254284856,-2500.0,8.851e-05,2]
[352701220,1739254583551,-5000.0,8.973e-05,2]
[352701221,1739254788641,151.7,7.616e-05,2]
[352701225,1739255100050,-343.8782,8.851e-05,2]
[352701226,1739255100078,-500.0,8.851e-05,2]
[352701227,1739255100105,-1000.0,8.851e-05,2]
[352701228,1739255100133,-150.0,8.912e-05,2]
[352701229,1739255100164,-906.1218,8.973e-05,2]
[352701240,1739255177647,2006.0,0.000142,60]
[352701241,1739255179428,899.78,8.219e-05,2]
[352701242,1739255196792,-430.25128808,8.835e-05,2]
[352701243,1739255196819,-41263.5559,8.836e-05,2]
[352701244,1739255196846,-706.19281192,8.851e-05,2]
[352701246,1739255226953,-220.95448808,8.851e-05,2]
[352701247,1739255226980,-479.04551192,8.851e-05,2]
[352701271,1739255431742,-20.95448808,8.851e-05,2]
[352701272,1739255431752,-150.0,8.912e-05,2]
[352701273,1739255431761,-30.3223,8.973e-05,2]
[352701274,1739255431770,-94.68152233,9.479e-05,2]
[352701275,1739255431782,-76.25847767,9.479e-05,2]
[352701276,1739255431791,-169.61,9.486e-05,2]
[352701277,1739255431799,-1372.20666356,9.486e-05,2]
[352701278,1739255431810,-224.50333644,9.486e-05,2]
[352701279,1739255431819,-284.91,9.492e-05,2]
[352701280,1739255431830,-1000.0,9.499e-05,2]
[352701281,1739255431839,-517.6776744,9.512e-05,2]
[352701282,1739255431849,-208.45513524,9.544e-05,2]
[352701283,1739255431860,-202.02486476,9.544e-05,2]
[352701284,1739255431870,-153.77513513,9.564e-05,2]
[352701285,1739255431881,-317.65486487,9.564e-05,2]
[352701286,1739255431890,-150.0,9.719e-05,2]
[352701287,1739255431899,-150.0,9.736e-05,2]
[352701288,1739255431908,-860.41,9.739e-05,2]
[352701289,1739255431917,-250.0,9.942e-05,2]
[352701290,1739255431927,-2557.04,9.995e-05,2]
[352701291,1739255431936,-11213.09,0.00010059,2]
[352701292,1739255431946,-983.57,0.00010078,2]
[352701293,1739255431955,-169.8,0.00010262,2]
[352701294,1739255431964,-494.48,0.00010295,2]
[352701295,1739255431973,-490.45,0.000104,2]
[352701296,1739255431982,-250.0,0.00010418,2]
[352701297,1739255431991,-899.78,0.00010445,2]
[352701298,1739255432000,-150.26,0.00010612,2]
[352701299,1739255432009,-152.07,0.00010612,2]
[352701300,1739255432018,-1000.0,0.00010686,2]
[352701301,1739255432028,-346.33895547,0.00010709,2]
[352701302,1739255432037,-150.0,0.00010709,2]
[352701303,1739255432046,-150.0,0.00010734,2]
[352701304,1739255432055,-14046.68234175,0.00010736,2]
[352701305,1739255432065,-215.18229407,0.00010821,2]
[352701306,1739255432074,-2720.25855683,0.00010826,2]
[352701307,1739255432083,-395.93850382,0.00010826,2]
[352701308,1739255432093,-2720.25855683,0.00010827,2]
[352701309,1739255432102,-3607.30875738,0.00010828,2]
[352701310,1739255432111,-3607.30875738,0.00010832,2]
[352701311,1739255432120,-122531.5214694,0.00010832,2]
[352701312,1739255432130,-259.13667894,0.00010837,2]
[352701313,1739255432139,-411.43848465,0.0001084,2]
[352701314,1739255432149,-395.93850382,0.00010846,2]
[352701315,1739255432159,-2720.25855683,0.00010847,2]
[352701316,1739255432167,-411.43848465,0.00010849,2]
[352701317,1739255432176,-6162.62698053,0.0001085,2]
[352701319,1739255432185,-150.0,0.0001085,2]
[352701321,1739255432194,-4000.0,0.0001085,2]
[352701323,1739255432203,-2720.25855683,0.00010853,2]
[352701325,1739255432213,-1360.12927841,0.00010856,2]
[352701327,1739255432222,-259.13667894,0.00010856,2]
[352701329,1739255432231,-4465.05342829,0.0001086,2]
[352701331,1739255432240,-17436.45872351,0.00010861,2]
[352701333,1739255432253,-122531.5214694,0.00010861,2]
[352701335,1739255432262,-411.43848465,0.00010864,2]
[352701337,1739255432271,-4465.05342829,0.00010865,2]
[352701339,1739255432280,-1360.12927841,0.00010865,2]
[352701341,1739255432290,-4465.05342829,0.00010869,2]
[352701343,1739255432299,-122531.5214694,0.0001087,2]
[352701345,1739255432308,-3607.30875738,0.00010872,2]
[352701348,1739255432318,-122531.5214694,0.00010873,2]
[352701351,1739255432327,-1360.12927841,0.00010875,2]
[352701355,1739255432338,-4465.05342829,0.00010876,2]
[352701358,1739255432347,-1360.12927841,0.0001088,2]
[352701361,1739255432356,-395.93850382,0.00010881,2]
[352701364,1739255432365,-150.0,0.00010882,2]
[352701367,1739255432375,-3607.30875738,0.00010883,2]
[352701370,1739255432384,-17436.45872351,0.00010885,2]
[352701373,1739255432393,-411.43848465,0.0001089,2]
[352701376,1739255432402,-17436.45872351,0.00010892,2]
[352701379,1739255432412,-395.93850382,0.00010893,2]
[352701381,1739255432422,-17436.45872351,0.00010894,2]
[352701383,1739255432431,-259.13667894,0.00010896,2]
[352701385,1739255432440,-259.13667894,0.00010897,2]
[352701388,1739255432450,-208.73403341,0.000109,2]
[352701389,1739255432459,-12066.0523391,0.00010949,2]
[352701391,1739255432468,-685.1905928,0.00010949,2]
[352701393,1739255432477,-860.41,0.00010956,2]
[352701395,1739255432486,-155.413143,0.00010958,2]
[352701397,1739255432495,-221.378067,0.00010958,2]
[352701399,1739255432504,-195.62843,0.00010958,2]
[352701401,1739255432513,-200.0,0.00010958,2]
[352701403,1739255432523,-500.0,0.00010958,2]
[352701405,1739255432532,-221.4215798,0.00010958,2]
[352701407,1739255432541,-512.46,0.00010958,2]
[352701409,1739255432550,-500.0,0.00010958,2]
[352701410,1739255432559,-506.33509517,0.00010958,2]
[352701411,1739255432569,-500.0,0.00010958,2]
[352701412,1739255432578,-509.40076004,0.00010958,2]
[352701413,1739255432587,-511.13085923,0.00010958,2]
[352701414,1739255432596,-504.9190676,0.00010958,2]
[352701415,1739255432605,-500.0,0.00010958,2]
[352701416,1739255432615,-500.0,0.00010958,2]
[352701417,1739255432624,-500.0,0.00010958,2]
[352701418,1739255432635,-500.0,0.00010958,2]
[352701419,1739255432647,-500.0,0.00010958,2]
[352701420,1739255432656,-505.64610049,0.00010958,2]
[352701421,1739255432665,-493.1973033,0.00010958,2]
[352701422,1739255432674,-265.43282287,0.00010958,2]
[352701423,1739255432683,-500.0,0.00010958,2]
[352701424,1739255432692,-500.0,0.00010958,2]
[352701425,1739255432701,-500.0,0.00010958,2]
[352701426,1739255432710,-506.72988095,0.00010958,2]
[352701427,1739255432719,-507.52063298,0.00010958,2]
[352701428,1739255432728,-500.0,0.00010958,2]
[352701429,1739255432737,-500.0,0.00010958,2]
[352701430,1739255432747,-500.0,0.00010958,2]
[352701431,1739255432756,-500.0,0.00010958,2]
[352701432,1739255432765,-500.0,0.00010958,2]
[352701433,1739255432774,-500.0,0.00010958,2]
[352701434,1739255432783,-500.0,0.00010958,2]
[352701435,1739255432793,-500.0,0.00010958,2]
[352701436,1739255432802,-500.0,0.00010958,2]
[352701437,1739255432811,-500.0,0.00010958,2]
[352701438,1739255432820,-500.0,0.00010958,2]
[352701439,1739255432829,-500.0,0.00010958,2]
[352701440,1739255432838,-500.0,0.00010958,2]
[352701441,1739255432847,-500.0,0.00010958,2]
[352701442,1739255432856,-500.96287753,0.00010958,2]
[352701443,1739255432865,-500.0,0.00010958,2]
[352701444,1739255432874,-500.0,0.00010958,2]
[352701445,1739255432884,-499.37027379,0.00010958,2]
[352701446,1739255432893,-303.02427647,0.00010958,2]
[352701447,1739255432902,-500.0,0.00010958,2]
[352701448,1739255432911,-376.61842378,0.00010958,2]
[352701449,1739255432920,-500.0,0.00010958,2]
[352701450,1739255432929,-500.0,0.00010958,2]
[352701451,1739255432939,-500.0,0.00010958,2]
[352701452,1739255432948,-500.0,0.00010958,2]
[352701453,1739255432956,-500.0,0.00010958,2]
[352701454,1739255432966,-500.0,0.00010958,2]
[352701455,1739255432975,-500.0,0.00010958,2]
[352701456,1739255432984,-500.0,0.00010958,2]
[352701457,1739255432994,-504.32845242,0.00010958,2]
[352701458,1739255433002,-500.0,0.00010958,2]
[352701459,1739255433011,-500.0,0.00010958,2]
[352701460,1739255433020,-503.11947818,0.00010958,2]
[352701461,1739255433030,-500.0,0.00010958,2]
[352701462,1739255433039,-500.0,0.00010958,2]
[352701463,1739255433049,-500.0,0.00010958,2]
[352701464,1739255433058,-500.0,0.00010958,2]
[352701465,1739255433067,-500.0,0.00010958,2]
[352701466,1739255433077,-500.0,0.00010958,2]
[352701467,1739255433086,-500.0,0.00010958,2]
[352701468,1739255433097,-552.73043513,0.00010958,2]
[352701469,1739255433105,-504.81087467,0.00010958,2]
[352701470,1739255433115,-500.0,0.00010958,2]
[352701471,1739255433125,-500.0,0.00010958,2]
[352701472,1739255433133,-500.0,0.00010958,2]
[352701473,1739255433143,-500.0,0.00010958,2]
[352701474,1739255433152,-500.0,0.00010958,2]
[352701475,1739255433161,-116.00184904,0.00010958,2]
[352701476,1739255433208,-383.99815096,0.00010958,2]
[352701477,1739255433218,-500.0,0.00010958,2]
[352701478,1739255433228,-500.0,0.00010958,2]
[352701479,1739255433237,-500.0,0.00010958,2]
[352701480,1739255433247,-200.0,0.00010958,2]
[352701481,1739255433257,-500.0,0.00010958,2]
[352701482,1739255433267,-500.0,0.00010958,2]
[352701483,1739255433276,-505.73095588,0.00010958,2]
[352701484,1739255433286,-805.66,0.00010958,2]
[352701485,1739255433296,-910.97,0.00010958,2]
[352701486,1739255433306,-500.0,0.00010958,2]
[352701487,1739255433316,-500.0,0.00010958,2]
[352701488,1739255433326,-500.0,0.00010958,2]
[352701489,1739255433336,-500.0,0.00010958,2]
[352701490,1739255433347,-500.0,0.00010958,2]
[352701491,1739255433356,-713.08,0.00010958,2]
[352701492,1739255433366,-500.0,0.00010958,2]
[352701493,1739255433375,-500.0,0.00010958,2]
[352701494,1739255433384,-1253.11,0.00010958,2]
[352701495,1739255433393,-504.92,0.00010958,2]
[352701496,1739255433403,-558.11,0.00010958,2]
[352701497,1739255433412,-1059.23,0.00010958,2]
[352701498,1739255433421,-500.0,0.00010958,2]
[352701499,1739255433431,-1029.86,0.00010958,2]
[352701500,1739255433441,-500.0,0.00010958,2]
[352701501,1739255433450,-554.9,0.00010958,2]
[352701502,1739255433462,-1075.95,0.00010958,2]
[352701503,1739255433474,-500.0,0.00010958,2]
[352701504,1739255433484,-500.0,0.00010958,2]
[352701505,1739255433493,-540.00388905,0.00010958,2]
[352701506,1739255433726,-870.16,0.00010958,2]
[352701507,1739255433736,-513.76862839,0.00010958,2]
[352701508,1739255433745,-500.0,0.00010958,2]
[352701509,1739255433755,-464.83024775,0.00010958,2]
[352701510,1739255433764,-642.82259107,0.00010958,2]
[352701511,1739255433773,-500.0,0.00010958,2]
[352701512,1739255433783,-500.0,0.00010958,2]
[352701513,1739255433792,-500.0,0.00010958,2]
[352701514,1739255433801,-500.0,0.00010958,2]
[352701515,1739255433810,-509.8524513,0.00010958,2]
[352701516,1739255433820,-500.0,0.00010958,2]
[352701517,1739255433829,-1150.82,0.00010958,2]
[352701518,1739255433839,-500.0,0.00010958,2]
[352701519,1739255433849,-500.0,0.00010958,2]
[352701520,1739255433859,-500.0,0.00010958,2]
[352701521,1739255433868,-709.72,0.00010958,2]
[352701522,1739255433878,-768.54,0.00010958,2]
[352701523,1739255433887,-417.9033062,0.00010958,2]
[352701524,1739255433916,-498.5966938,0.00010958,2]
[352701525,1739255433926,-678.68,0.00010958,2]
[352701526,1739255433935,-501.66410514,0.00010958,2]
[352701527,1739255433945,-506.59427439,0.00010958,2]
[352701528,1739255433956,-12.39153418,0.00010958,2]
[352701529,1739255433967,-533.6,0.00010958,2]
[352701530,1739255433976,-600.11167624,0.00010958,2]
[352701531,1739255433986,-804.97,0.00010958,2]
[352701532,1739255433996,-500.0,0.00010958,2]
[352701533,1739255434006,-519.3,0.00010958,2]
[352701534,1739255434015,-609.21754025,0.00010958,2]
[352701535,1739255434025,-613.4,0.00010958,2]
[352701536,1739255434034,-500.0,0.00010958,2]
[352701537,1739255434044,-500.0,0.00010958,2]
[352701538,1739255434054,-687.26,0.00010958,2]
[352701539,1739255434063,-500.0,0.00010958,2]
[352701540,1739255434073,-500.0,0.00010958,2]
[352701541,1739255434083,-507.36,0.00010958,2]
[352701542,1739255434094,-500.0,0.00010958,2]
[352701543,1739255434104,-500.0,0.00010958,2]
[352701544,1739255434114,-500.0,0.00010958,2]
[352701545,1739255434123,-500.0,0.00010958,2]
[352701546,1739255434133,-899.46,0.00010958,2]
[352701547,1739255434142,-190.55476337,0.00010958,2]
[352701548,1739255434152,-171.620214,0.00010958,2]
[352701549,1739255434162,-151.0,0.00010958,2]
[352701550,1739255434171,-151.0,0.00010958,2]
[352701551,1739255434181,-165.85546454,0.00010958,2]
[352701552,1739255434191,-151.0,0.00010958,2]
[352701553,1739255434200,-500.0,0.00010958,2]
[352701554,1739255434210,-151.0,0.00010958,2]
[352701555,1739255434220,-500.0,0.00010958,2]
[352701556,1739255434229,-151.0,0.00010958,2]
[352701557,1739255434239,-151.0,0.00010958,2]
[352701558,1739255434253,-151.0,0.00010958,2]
[352701559,1739255434263,-500.0,0.00010958,2]
[352701560,1739255434273,-151.0,0.00010958,2]
[352701561,1739255434283,-151.0,0.00010958,2]
[352701562,1739255434294,-500.0,0.00010958,2]
[352701563,1739255434304,-151.0,0.00010958,2]
[352701564,1739255434314,-503.00771646,0.00010958,2]